[Event "Czech Youth U12 Boys 2024"]
[Site "Kouty nad Desnou"]
[Date "2024.03.12"]
[Round "5.7"]
[White "Frantsev, Iegor"]
[Black "Sudrich, Radek"]
[Result "1/2-1/2"]
[ECO "B23"]
[WhiteElo "1721"]
[BlackElo "1998"]
[Annotator "RC"]
[PlyCount "63"]
[EventDate "2024.03.10"]
[EventType "swiss"]
[EventCountry "CZE"]
[SourceTitle "playchess.com"]
[Source "ChessBase"]
[SourceQuality "1"]
[TimeControl "40/5400+30:1800+30"]

1. e4 {[%emt 0:00:03]} c5 {[%emt 0:00:36]} 2. Nc3 {[%emt 0:00:30]} e6 {[%emt 0:00:30]} 3. f4 {[%emt 0:00:26]} Nc6 {[%emt 0:00:25]} 4. Nf3 {[%emt 0:00:58]} Be7 {[%emt 0:00:57]} 5. Bb5 {[%emt 0:05:18]} Nh6 {[%emt 0:01:12]} 6. d3 {[%emt 0:01:12]} f5 {[%emt 0:00:14]} 7. Bxc6 {[%emt 0:05:00]} bxc6 {[%emt 0:02:11]} 8. Ne5 {[%emt 0:05:00]} O-O {[%emt 0:00:26]} 9. O-O {[%emt 0:01:29]} Nf7 {[%emt 0:01:28]} 10. Nxf7 {[%emt 0:01:58]} Rxf7 {[%emt 0:00:14]} 11. b3 {[%emt 0:00:43]} d5 {[%emt 0:03:01]} 12. Bb2 {[%emt 0:17:10]} Ba6 {[%emt 0:06:38]} 13. exf5 {[%emt 0:07:19]} exf5 {[%emt 0:01:46]} 14. Qf3 {[%emt 0:02:50]} Qb6 {[%emt 0:03:12]} 15. Kh1 {[%emt 0:02:16]} Raf8 {[%emt 0:03:53]} 16. Rae1 {[%emt 0:01:54]} Bc8 {[%emt 0:05:47]} 17. Ne2 {[%emt 0:13:36]} d4 {[%emt 0:03:49]} 18. a4 {[%emt 0:04:27]} Be6 {[%emt 0:05:55]} 19. Ng3 {[%emt 0:06:45]} Bd5 {[%emt 0:00:24]} 20. Qh5 {[%emt 0:02:17]} g6 {[%emt 0:01:23]} 21. Qh3 {[%emt 0:02:17]} Bf6 {[%emt 0:01:58]} 22. Ba3 {[%emt 0:01:19]} Be7 {[%emt 0:03:00]} 23. Ne2 {[%emt 0:02:09]} Bf6 {[%emt 0:02:12]} 24. Ng3 {[%emt 0:01:22]} Be7 {[%emt 0:01:15]} 25. Ne2 {[%emt 0:01:59]} Qc7 {[%emt 0:05:07]} 26. Ng3 {[%emt 0:04:21]} Bd6 {[%emt 0:03:55]} 27. Qh6 {[%emt 0:00:37]} Rc8 {[%emt 0:01:35]} 28. Qg5 {[%emt 0:01:32]} Be7 {[%emt 0:00:43]} 29. Qh6 {[%emt 0:01:00]} Bf8 {[%emt 0:00:09]} 30. Qg5 {[%emt 0:00:18]} Be7 {[%emt 0:01:01]} 31. Qh6 Bf8 32. Qg5 1/2-1/2

[Event "Czech Youth U12 Boys 2024"]
[Site "Kouty nad Desnou"]
[Date "2024.03.12"]
[Round "5.8"]
[White "Bara, Jan"]
[Black "Krisica, Lukas"]
[Result "1-0"]
[ECO "A30"]
[WhiteElo "1852"]
[BlackElo "1531"]
[Annotator "NA RC"]
[PlyCount "45"]
[EventDate "2024.03.10"]
[EventType "swiss"]
[EventCountry "CZE"]
[SourceTitle "playchess.com"]
[Source "ChessBase"]
[SourceQuality "1"]
[TimeControl "40/5400+30:1800+30"]

1. c4 {[%emt 0:01:37]} c5 {[%emt 0:01:18]} 2. g3 {[%emt 0:00:24]} e6 {[%emt 0:00:29]} 3. Bg2 {[%emt 0:00:06]} Nc6 {[%emt 0:01:10]} 4. Nc3 {[%emt 0:00:21]} Nf6 {[%emt 0:01:11]} 5. Nf3 {[%emt 0:00:46]} Be7 {[%emt 0:00:50]} 6. O-O {[%emt 0:00:22]} O-O {[%emt 0:00:52]} 7. b3 {[%emt 0:00:37]} b6 {[%emt 0:02:23]} 8. d4 {[%emt 0:02:49]} d5 {[%emt 0:02:07]} 9. dxc5 {[%emt 0:03:09]} Bxc5 {[%emt 0:00:28]} 10. cxd5 {[%emt 0:00:41]} Nxd5 {[%emt 0:00:20]} 11. Nxd5 {[%emt 0:00:39]} Qxd5 {[%emt 0:00:31]} 12. Qxd5 {[%emt 0:00:34]} exd5 {[%emt 0:00:06]} 13. Bb2 {[%emt 0:02:26]} Ba6 {[%emt 0:01:41]} 14. Rfe1 {[%emt 0:01:49]} Bb4 {[%emt 0:00:47]} 15. Rec1 {[%emt 0:01:07]} Rac8 {[%emt 0:03:14]} 16. Bh3 {[%emt 0:02:58]} f5 {[%emt 0:00:59]} 17. Rc2 {[%emt 0:03:55]} Ne7 {[%emt 0:01:42]} 18. Rac1 {[%emt 0:01:11]} Rc5 $16 {[%emt 0:01:46]} 19. a3 {[%emt 0:03:45]} Rxc2 {[%emt 0:01:45]} 20. Rxc2 {[%emt 0:00:02]} Bd6 {[%emt 0:00:22]} 21. Nd4 {[%emt 0:02:22]} f4 {[%emt 0:02:58]} 22. Ne6 {[%emt 0:01:48]} Rf6 {[%emt 0:01:38]} 23. Bxf6 {[%emt 0:00:57]} 1-0

[Event "Czech Youth U12 Boys 2024"]
[Site "Kouty nad Desnou"]
[Date "2024.03.12"]
[Round "5.9"]
[White "Gresek, Oskar"]
[Black "Malek, Daniel"]
[Result "1-0"]
[ECO "B12"]
[WhiteElo "1629"]
[BlackElo "2278"]
[Annotator "TA"]
[PlyCount "57"]
[EventDate "2024.03.10"]
[EventType "swiss"]
[EventCountry "CZE"]
[SourceTitle "playchess.com"]
[Source "ChessBase"]
[SourceQuality "1"]
[TimeControl "40/5400+30:1800+30"]

{[%evp 15,57,-49,-46,-79,-71,-90,0,-53,-1,-139,-102,-94,-94,-125,90,-61,13,19,15,9,2,9,58,81,72,42,274,283,328,206,314,321,422,452,591,586,588,534,483,439,419,362,683,679]} 1. e4 {[%emt 0:00:03]} c6 {[%emt 0:00:12]} 2. d4 {[%emt 0:00:08]} d5 {[%emt 0:00:18]} 3. e5 {[%emt 0:00:37]} Bf5 {[%emt 0:00:31]} 4. g4 {[%emt 0:00:19]} Be4 {[%emt 0:02:34]} 5. f3 {[%emt 0:00:12]} Bg6 {[%emt 0:00:26]} 6. h4 {[%emt 0:00:43]} h5 {[%emt 0:01:50]} 7. e6 {[%emt 0:06:22]} Qd6 {[%emt 0:08:31]} 8. exf7+ {[%emt 0:00:58]} Bxf7 {[%emt 0:00:34]} 9. Ne2 {[%emt 0:07:57] Verhindert Qg3+} hxg4 {[%emt 0:06:09]} 10. fxg4 {[%emt 0:00:44] [#]} Nf6 {[%emt 0:02:24]} (10... Nd7 $1 $17 {Zielt auf ...e5 ab.} 11. Nbc3 e5) 11. g5 {[%emt 0:07:14]} (11. Bf4 $11 Qe6 12. g5) 11... Ne4 {[%emt 0:03:08]} (11... Nh5 $1 $15) 12. c3 {[%emt 0:03:46]} (12. Bf4 $11 e5 13. Bxe5 (13. dxe5 Qc5 $17)) 12... Bh5 {[%emt 0:02:13]} 13. Qd3 {[%emt 0:07:31]} Nd7 {[%emt 0:03:44] Und jetzt ...e5 wäre schön.} 14. Nd2 {[%emt 0:07:52][%cal Bb1d2,Bd2f3,Bf3e5][%mdl 32]} Bxe2 $2 {[%emt 0:03:42] [#]} (14... Nxg5 $1 $17 {[%cal Oe7e5] Und ...e5! würde nun gewinnen.} 15. Qe3 Nf7) 15. Bxe2 $2 {[%emt 0:01:20]} ({Weiss kommt nicht vorbei an} 15. Nxe4 $16 dxe4 16. Qxe2 (16. Kxe2 $2 {verliert.} exd3+ 17. Kf2 e5 $19) 16... Qg3+ 17. Qf2 Qxf2+ 18. Kxf2) 15... Qg3+ {[%emt 0:03:18]} ({Vorzuziehen ist} 15... Nxg5 $15 16. Rg1 Nf7) 16. Qxg3 $11 {[%emt 0:00:57]} Nxg3 {[%emt 0:00:10] Ein dynamisches Springerpaar.} 17. Rh3 {[%emt 0:01:13]} Nxe2 {[%emt 0:00:40]} 18. Kxe2 {[%emt 0:00:15]} O-O-O {[%emt 0:00:53]} (18... g6 $11 {war vorzuziehen.}) 19. Nf3 $14 {[%emt 0:01:31]} Re8 {[%emt 0:04:47]} 20. Bf4 {[%emt 0:02:53]} Nb6 $2 {[%emt 0:03:23] Das Aus für Schwarz.} ({Besser ist} 20... e5 $14 21. dxe5 (21. Nxe5 Bd6 $14) 21... Bd6) 21. Ne5 $18 {[%emt 0:05:21]} e6 {[%emt 0:02:32]} 22. b3 {[%emt 0:03:05] Schwarz muss nun h5 beachten.} Ba3 {[%emt 0:01:29]} (22... Bd6 $142 23. Rf1 Rhg8) 23. Rf1 {[%emt 0:08:12]} Nd7 {[%emt 0:02:45]} 24. b4 {[%emt 0:10:16]} a5 {[%emt 0:03:18]} 25. Nf7 {[%emt 0:01:25] Verhindert axb4} axb4 {[%emt 0:01:24]} 26. Nxh8 {[%emt 0:02:29]} Rxh8 {[%emt 0:00:09]} 27. cxb4 {[%emt 0:05:18]} Bxb4 {[%emt 0:00:02]} 28. h5 {[%emt 0:01:23][%cal Bh4h5,Bh5g6][%mdl 32]} g6 $2 {[%emt 0:02:08]} (28... Be7 29. Bd2 Bd6) 29. hxg6 {[%emt 0:01:30] Gewichteter Fehlerwert: Weiß=0.47/Schwarz=0.99.  Verlustzug:     	---       	Schwarz=1     Fehler:       	Weiß=3     	Schwarz=7     Ungenau:       	Weiß=2     	Schwarz=2     OK:         	Weiß=8     	Schwarz=3     Bester:       	Weiß=2     	---} 1-0

[Event "Czech Youth U12 Boys 2024"]
[Site "Kouty nad Desnou"]
[Date "2024.03.12"]
[Round "5.10"]
[White "Novotny, Adam"]
[Black "Fadrny, Jachym"]
[Result "0-1"]
[ECO "C02"]
[WhiteElo "2072"]
[BlackElo "1729"]
[Annotator "RC"]
[PlyCount "154"]
[EventDate "2024.03.10"]
[EventType "swiss"]
[EventCountry "CZE"]
[SourceTitle "playchess.com"]
[Source "ChessBase"]
[SourceQuality "1"]
[TimeControl "40/5400+30:1800+30"]

1. e4 {[%emt 0:00:06]} e6 {[%emt 0:00:07]} 2. d4 {[%emt 0:00:10]} d5 {[%emt 0:00:07]} 3. e5 {[%emt 0:00:35]} c5 {[%emt 0:00:11]} 4. c3 {[%emt 0:00:24]} Nc6 {[%emt 0:00:17]} 5. Nf3 {[%emt 0:00:59]} Bd7 {[%emt 0:00:42]} 6. a3 {[%emt 0:02:19]} c4 {[%emt 0:01:09]} 7. Be2 {[%emt 0:02:58]} Na5 {[%emt 0:01:04]} 8. Nbd2 {[%emt 0:03:41]} Bc6 {[%emt 0:02:01]} 9. O-O {[%emt 0:08:39]} Qd7 {[%emt 0:01:50]} 10. a4 {[%emt 0:05:38]} Ne7 {[%emt 0:01:42]} 11. Qc2 {[%emt 0:05:23]} Nc8 {[%emt 0:02:08]} 12. Bd1 {[%emt 0:08:24]} Nb6 {[%emt 0:02:04]} 13. Qb1 {[%emt 0:06:59]} Bxa4 {[%emt 0:13:21]} 14. Bxa4 {[%emt 0:08:01]} Nxa4 {[%emt 0:00:26]} 15. Qa2 {[%emt 0:03:47]} b5 {[%emt 0:01:44]} 16. b3 {[%emt 0:04:26]} Nxb3 {[%emt 0:02:55]} 17. Nxb3 {[%emt 0:00:59]} cxb3 {[%emt 0:00:14]} 18. Qxb3 {[%emt 0:00:56]} Rc8 {[%emt 0:02:07]} 19. Bd2 {[%emt 0:03:20]} Be7 {[%emt 0:01:15]} 20. Rab1 {[%emt 0:03:03]} a6 {[%emt 0:00:31]} 21. Ne1 {[%emt 0:03:47]} O-O {[%emt 0:01:06]} 22. Nd3 {[%emt 0:02:32]} Rc4 {[%emt 0:02:55]} 23. Nb2 {[%emt 0:04:21]} Nxb2 {[%emt 0:00:54]} 24. Rxb2 {[%emt 0:03:19]} Ra4 {[%emt 0:06:24]} 25. Ra2 {[%emt 0:02:17]} Rxa2 {[%emt 0:01:32]} 26. Qxa2 {[%emt 0:00:08]} Qc6 {[%emt 0:02:07]} 27. Qb3 {[%emt 0:02:48]} Rc8 {[%emt 0:01:29]} 28. Ra1 {[%emt 0:00:47]} Ra8 {[%emt 0:02:33]} 29. Rb1 {[%emt 0:01:43]} Rb8 {[%emt 0:03:41]} 30. Ra1 {[%emt 0:01:12]} Bd8 {[%emt 0:01:01]} 31. Qb4 {[%emt 0:03:25]} a5 {[%emt 0:01:42]} 32. Qd6 {[%emt 0:01:31]} Qxd6 {[%emt 0:01:07]} 33. exd6 {[%emt 0:00:04]} Rc8 {[%emt 0:01:19]} 34. Rb1 {[%emt 0:03:48]} Rb8 {[%emt 0:03:38]} 35. Kf1 {[%emt 0:01:12]} g5 {[%emt 0:01:45]} 36. Ke2 {[%emt 0:00:57]} Kf8 {[%emt 0:00:42]} 37. Bc1 {[%emt 0:01:51]} Ke8 {[%emt 0:01:08]} 38. Ba3 {[%emt 0:00:48]} Kd7 {[%emt 0:02:11]} 39. Kd3 {[%emt 0:00:38]} f5 {[%emt 0:05:01]} 40. Rb2 {[%emt 0:01:26]} Kc6 {[%emt 0:02:51]} 41. Rb1 {[%emt 0:30:18]} a4 {[%emt 0:31:52]} 42. Bb4 {[%emt 0:00:42]} Ra8 {[%emt 0:01:29]} 43. Ra1 {[%emt 0:00:14]} Ba5 {[%emt 0:02:06]} 44. Bc5 {[%emt 0:00:42]} Bb6 {[%emt 0:00:36]} 45. Bb4 {[%emt 0:00:15]} Ba7 {[%emt 0:00:11]} 46. Ba3 {[%emt 0:00:21]} Rd8 {[%emt 0:01:08]} 47. Rb1 {[%emt 0:00:17]} Bb8 {[%emt 0:00:32]} 48. Re1 {[%emt 0:01:12]} Re8 {[%emt 0:01:50]} 49. Rb1 {[%emt 0:00:26]} Ba7 {[%emt 0:04:38]} 50. Rb2 {[%emt 0:00:32]} Rb8 {[%emt 0:01:00]} 51. Rb1 {[%emt 0:00:12]} Kd7 {[%emt 0:02:45]} 52. Rb2 {[%emt 0:00:20]} Rb7 {[%emt 0:02:13]} 53. Rb1 {[%emt 0:00:20]} Bb8 {[%emt 0:00:35]} 54. Bc1 {[%emt 0:01:18]} h6 {[%emt 0:00:31]} 55. Ba3 {[%emt 0:00:46]} Bxd6 {[%emt 0:00:25]} 56. Bxd6 {[%emt 0:00:16]} Kxd6 {[%emt 0:00:04]} 57. Ra1 {[%emt 0:00:18]} Re7 {[%emt 0:02:54]} 58. Rb1 {[%emt 0:00:12]} Kc6 {[%emt 0:00:06]} 59. Re1 {[%emt 0:00:41]} Kd6 {[%emt 0:01:56]} 60. Rb1 {[%emt 0:00:13]} Rb7 {[%emt 0:00:06]} 61. Re1 {[%emt 0:01:18]} Rb6 {[%emt 0:01:16]} 62. Re2 {[%emt 0:00:20]} b4 {[%emt 0:01:13]} 63. cxb4 {[%emt 0:00:12]} Rxb4 {[%emt 0:00:07]} 64. Ra2 {[%emt 0:00:21]} e5 {[%emt 0:00:35]} 65. dxe5+ {[%emt 0:00:14]} Kxe5 {[%emt 0:00:10]} 66. Re2+ {[%emt 0:00:11]} Kd6 {[%emt 0:00:54]} 67. Rc2 {[%emt 0:01:13]} a3 {[%emt 0:01:17]} 68. Ra2 {[%emt 0:00:13]} Rb2 {[%emt 0:00:05]} 69. Rxa3 {[%emt 0:00:19]} Rxf2 {[%emt 0:00:26]} 70. Ra6+ {[%emt 0:00:07]} Ke5 {[%emt 0:00:04]} 71. Rxh6 {[%emt 0:00:39]} Rxg2 {[%emt 0:00:06]} 72. Rh8 {[%emt 0:00:50]} f4 {[%emt 0:00:53]} 73. Re8+ {[%emt 0:00:24]} Kf5 {[%emt 0:00:13]} 74. Rd8 {[%emt 0:00:50]} Rxh2 {[%emt 0:00:24]} 75. Rxd5+ {[%emt 0:00:09]} Kg6 {[%emt 0:00:36]} 76. Rd6+ {[%emt 0:00:26]} Kh5 {[%emt 0:00:20]} 77. Rd8 {[%emt 0:00:07]} Kg4 0-1

[Event "Czech Youth U12 Boys 2024"]
[Site "Kouty nad Desnou"]
[Date "2024.03.12"]
[Round "5.11"]
[White "Zvolanek, Vojtech"]
[Black "Hanzel, Martin"]
[Result "0-1"]
[ECO "B40"]
[WhiteElo "1411"]
[BlackElo "1474"]
[Annotator "NA RC"]
[PlyCount "98"]
[EventDate "2024.03.10"]
[EventType "swiss"]
[EventCountry "CZE"]
[SourceTitle "playchess.com"]
[Source "ChessBase"]
[SourceQuality "1"]
[TimeControl "40/5400+30:1800+30"]

1. e4 {[%emt 0:00:07]} c5 {[%emt 0:00:08]} 2. Nf3 {[%emt 0:00:25]} e6 {[%emt 0:00:23]} 3. d4 {[%emt 0:00:16]} cxd4 {[%emt 0:00:07]} 4. Nxd4 {[%emt 0:00:24]} Nf6 {[%emt 0:00:25]} 5. Nc3 {[%emt 0:00:38]} Nc6 {[%emt 0:00:22]} 6. Ndb5 {[%emt 0:01:51]} Bb4 {[%emt 0:00:46]} 7. a3 {[%emt 0:01:52]} Bxc3+ {[%emt 0:00:22]} 8. bxc3 {[%emt 0:00:23]} Nxe4 {[%emt 0:01:15]} 9. Bd3 {[%emt 0:04:08]} Qa5 {[%emt 0:09:06]} 10. Bxe4 {[%emt 0:19:36]} Qxb5 {[%emt 0:00:51]} 11. Bd3 {[%emt 0:03:17]} Qe5+ {[%emt 0:00:58]} 12. Be2 {[%emt 0:05:46]} Qxc3+ {[%emt 0:01:01]} 13. Bd2 {[%emt 0:02:10]} Qe5 {[%emt 0:00:50]} 14. O-O {[%emt 0:01:36]} O-O {[%emt 0:00:18]} 15. Re1 {[%emt 0:01:54]} d5 {[%emt 0:01:13]} 16. Bd3 {[%emt 0:00:54]} Qd6 {[%emt 0:00:36]} 17. Bc3 {[%emt 0:02:01]} e5 {[%emt 0:00:53]} 18. Qh5 {[%emt 0:07:28]} e4 {[%emt 0:00:55]} 19. Be2 {[%emt 0:07:02]} f5 {[%emt 0:02:02]} 20. Qg5 {[%emt 0:04:08]} Qe7 {[%emt 0:03:37]} 21. Qd2 {[%emt 0:07:24]} Qd6 {[%emt 0:01:47]} 22. Rad1 {[%emt 0:01:46]} Rd8 {[%emt 0:00:43]} 23. Qc1 {[%emt 0:01:49]} Qc5 {[%emt 0:01:31]} 24. Qa1 {[%emt 0:05:06]} d4 {[%emt 0:01:15]} 25. Qa2+ {[%emt 0:01:36]} Kh8 {[%emt 0:02:07]} 26. Ba1 {[%emt 0:00:54]} Rd6 {[%emt 0:01:48]} 27. Qb2 {[%emt 0:02:21]} b6 {[%emt 0:01:22]} 28. Rd2 {[%emt 0:02:33]} a6 {[%emt 0:02:59]} 29. Red1 {[%emt 0:04:20]} Be6 {[%emt 0:00:11]} 30. Qb1 {[%emt 0:02:40]} Bc4 {[%emt 0:01:32]} 31. Bxc4 {[%emt 0:01:40]} Qxc4 {[%emt 0:01:02]} 32. Qxb6 {[%emt 0:02:22]} d3 {[%emt 0:00:55]} 33. Qc7 {[%emt 0:01:12]} Rg6 {[%emt 0:04:32]} 34. cxd3 {[%emt 0:00:34]} exd3 {[%emt 0:01:13]} 35. Rxd3 {[%emt 0:00:04]} Re8 {[%emt 0:04:25]} 36. Rd6 {[%emt 0:01:29]} Qe4 {[%emt 0:03:38]} 37. f3 {[%emt 0:02:25]} Qe2 {[%emt 0:00:44]} 38. R6d2 {[%emt 0:01:18]} Qxf3 {[%emt 0:03:00]} 39. Qd7 {[%emt 0:01:08]} Qe3+ {[%emt 0:02:37]} 40. Kf1 {[%emt 0:01:19]} Rg4 {[%emt 0:02:15]} 41. Qxc6 {[%emt 0:30:33]} Rf4+ {[%emt 0:30:41]} 42. Qf3 {[%emt 0:00:30]} Rxf3+ {[%emt 0:00:15]} 43. gxf3 {[%emt 0:00:05]} Qxf3+ {[%emt 0:00:24]} 44. Kg1 {[%emt 0:00:29]} Qxa3 {[%emt 0:01:33]} 45. Rd8 {[%emt 0:00:27]} Qc5+ {[%emt 0:01:30]} 46. Kf1 {[%emt 0:00:28]} Qb5+ {[%emt 0:00:38]} 47. Kg1 {[%emt 0:00:23]} Qb6+ {[%emt 0:00:21]} 48. R8d4 {[%emt 0:00:32]} Re4 {[%emt 0:03:49]} 49. Rc1 {[%emt 0:00:41]} Rxd4 {[%emt 0:00:58]} 0-1

[Event "Czech Youth U12 Boys 2024"]
[Site "Kouty nad Desnou"]
[Date "2024.03.12"]
[Round "5.12"]
[White "Broz, Pavel"]
[Black "Sochor, Antonin"]
[Result "0-1"]
[ECO "B00"]
[WhiteElo "1911"]
[BlackElo "1779"]
[Annotator "RC"]
[PlyCount "84"]
[EventDate "2024.03.10"]
[EventType "swiss"]
[EventCountry "CZE"]
[SourceTitle "playchess.com"]
[Source "ChessBase"]
[SourceQuality "1"]
[TimeControl "40/5400+30:1800+30"]

1. e4 {[%emt 0:00:06]} d6 {[%emt 0:00:10]} 2. d4 {[%emt 0:00:36]} Nd7 {[%emt 0:00:22]} 3. Nf3 {[%emt 0:01:20]} e5 {[%emt 0:01:33]} 4. Bc4 {[%emt 0:01:58]} h6 {[%emt 0:03:21]} 5. O-O {[%emt 0:04:40]} Ngf6 {[%emt 0:02:14]} 6. Nc3 {[%emt 0:03:48]} c6 {[%emt 0:03:49]} 7. dxe5 {[%emt 0:02:36]} dxe5 {[%emt 0:00:38]} 8. Be3 {[%emt 0:03:37]} Be7 {[%emt 0:02:08]} 9. Qd2 {[%emt 0:06:53]} b5 {[%emt 0:06:44]} 10. Bb3 {[%emt 0:09:56]} Qc7 {[%emt 0:29:15]} 11. Rad1 {[%emt 0:15:59]} Bb7 {[%emt 0:08:50]} 12. h3 {[%emt 0:07:40]} a5 {[%emt 0:03:23]} 13. a3 {[%emt 0:05:28]} Rd8 {[%emt 0:00:43]} 14. Qe2 {[%emt 0:00:45]} O-O {[%emt 0:01:20]} 15. Rd2 {[%emt 0:04:51]} Ba6 {[%emt 0:05:53]} 16. Rfd1 {[%emt 0:02:46]} Qb7 {[%emt 0:02:27]} 17. Qe1 {[%emt 0:02:25]} b4 {[%emt 0:07:43]} 18. axb4 {[%emt 0:02:24]} axb4 {[%emt 0:02:10]} 19. Ne2 {[%emt 0:02:29]} Nxe4 {[%emt 0:02:31]} 20. Rxd7 {[%emt 0:01:49]} Rxd7 {[%emt 0:00:48]} 21. Rxd7 {[%emt 0:00:13]} Qxd7 {[%emt 0:00:18]} 22. Nxe5 {[%emt 0:00:18]} Qc7 {[%emt 0:02:27]} 23. Ng6 {[%emt 0:09:43]} Rd8 {[%emt 0:07:23]} 24. Nef4 {[%emt 0:04:18]} Bd6 {[%emt 0:02:49]} 25. f3 {[%emt 0:01:27]} Nf6 {[%emt 0:01:02]} 26. Qf2 {[%emt 0:01:12]} c5 {[%emt 0:01:10]} 27. g3 {[%emt 0:01:07]} Kh7 {[%emt 0:00:34]} 28. Nd5 {[%emt 0:02:10]} Nxd5 {[%emt 0:00:28]} 29. Bxd5 {[%emt 0:00:28]} fxg6 {[%emt 0:00:18]} 30. f4 {[%emt 0:00:25]} Bb7 {[%emt 0:00:29]} 31. Bc4 {[%emt 0:00:06]} Qc6 {[%emt 0:00:24]} 32. Kf1 {[%emt 0:00:26]} Bc7 {[%emt 0:00:35]} 33. Bd3 {[%emt 0:00:11]} c4 {[%emt 0:00:32]} 34. Be2 {[%emt 0:00:14]} b3 {[%emt 0:00:59]} 35. cxb3 {[%emt 0:00:33]} cxb3 {[%emt 0:00:11]} 36. f5 {[%emt 0:00:25]} Ra8 {[%emt 0:00:32]} 37. fxg6+ {[%emt 0:00:13]} Kh8 {[%emt 0:00:22]} 38. Bd1 {[%emt 0:01:10]} Qh1+ {[%emt 0:00:45]} 39. Ke2 {[%emt 0:00:06]} Ba6+ {[%emt 0:00:34]} 40. Kd2 {[%emt 0:00:17]} Ba5+ {[%emt 0:00:21]} 41. Kc1 {[%emt 0:30:17]} Rc8+ {[%emt 0:30:09]} 42. Bc5 {[%emt 0:00:04]} Bb4 {[%emt 0:01:16]} 0-1

[Event "Czech Youth U12 Boys 2024"]
[Site "Kouty nad Desnou"]
[Date "2024.03.13"]
[Round "6.1"]
[White "Artamonov, Mikhail"]
[Black "Honcharov, Makar"]
[Result "0-1"]
[ECO "C44"]
[WhiteElo "1727"]
[BlackElo "1872"]
[Annotator "NA RC"]
[PlyCount "84"]
[EventDate "2024.03.10"]
[EventType "swiss"]
[EventCountry "CZE"]
[SourceTitle "playchess.com"]
[Source "ChessBase"]
[SourceQuality "1"]
[TimeControl "40/5400+30:1800+30"]

1. e4 {[%emt 0:00:49]} e5 {[%emt 0:00:10]} 2. Nf3 {[%emt 0:00:25]} Nc6 {[%emt 0:00:13]} 3. d3 {[%emt 0:01:00]} g6 {[%emt 0:00:43]} 4. g3 {[%emt 0:01:20]} Bg7 {[%emt 0:00:07]} 5. Bg2 {[%emt 0:00:48]} Nge7 {[%emt 0:00:24]} 6. O-O {[%emt 0:01:36] C44: Ponziani Opening and Scotch Gambit.} O-O {[%emt 0:00:32]} 7. Nfd2 {[%emt 0:05:52]} d5 {[%emt 0:04:52]} 8. Nc3 {[%emt 0:05:40]} Be6 {[%emt 0:01:37]} 9. Ne2 {[%emt 0:07:33]} Qd7 {[%emt 0:04:02]} 10. exd5 {[%emt 0:10:55]} Nxd5 {[%emt 0:00:59]} 11. Ne4 {[%emt 0:01:50]} Qe7 {[%emt 0:00:05]} 12. Be3 {[%emt 0:00:44]} Nxe3 {[%emt 0:00:27]} 13. fxe3 {[%emt 0:00:19]} f5 {[%emt 0:00:14]} 14. N4c3 {[%emt 0:03:49]} Rad8 {[%emt 0:01:07]} 15. Qe1 {[%emt 0:04:43]} a6 {[%emt 0:07:49]} (15... Bh6 $142 16. e4 Nb4) 16. Rd1 {[%emt 0:08:48]} (16. Bxc6 $17 {was necessary.} bxc6 17. Rd1) 16... Rd6 {[%emt 0:05:04]} 17. e4 {[%emt 0:03:01]} Qd7 {[%emt 0:13:30]} 18. Nd5 {[%emt 0:07:33]} (18. Kh1 $15 {is more appropriate.}) 18... Ne7 {[%emt 0:05:53]} ({Black should play} 18... g5) 19. Nec3 {[%emt 0:03:01]} c6 {[%emt 0:11:22]} 20. Nxe7+ {[%emt 0:03:10]} Qxe7 {[%emt 0:00:08]} 21. Kh1 {[%emt 0:11:52]} Kh8 {[%emt 0:03:12]} ({Vorzuziehen ist} 21... f4 $19 22. gxf4 Bg4 (22... exf4 $2 23. e5 $17) (22... Rxf4 23. Rxf4 exf4 24. e5 $17)) 22. Qe3 {[%emt 0:04:07]} Rd7 {[%emt 0:05:28]} 23. Na4 {[%emt 0:03:40]} Rd4 {[%emt 0:00:39]} 24. Nc3 {[%emt 0:01:18] [#]} (24. exf5 $1 $15 gxf5 (24... Bxa2 $2 {is the wrong capture.} 25. b3 $18) 25. b3) 24... Rfd8 {[%emt 0:03:13]} (24... f4 $1 $17 {[%cal Rf4e3]} 25. Qd2 g5) 25. Rde1 {[%emt 0:01:56]} Qc7 {[%emt 0:06:50]} (25... f4 $15 26. gxf4 exf4 27. Qxf4 Rb4) 26. Qe2 {[%emt 0:02:17]} (26. Ne2 $11 {remains equal.} Ra4 27. a3) 26... b5 {[%emt 0:07:04]} 27. a3 {[%emt 0:00:47]} a5 {[%emt 0:02:10]} 28. Qe3 {[%emt 0:01:06]} b4 {[%emt 0:02:22]} 29. Ne2 {[%emt 0:00:09]} R4d6 {[%emt 0:01:01]} 30. axb4 {[%emt 0:00:18]} axb4 {[%emt 0:00:06]} 31. Ng1 {[%emt 0:00:28]} b3 {[%emt 0:01:13]} 32. Re2 {[%emt 0:01:34]} bxc2 {[%emt 0:01:28]} 33. Rd2 $1 $11 {[%emt 0:00:54] and White is okay.} Rd4 {[%emt 0:01:31]} 34. Ne2 {[%emt 0:00:19]} R4d6 {[%emt 0:00:35]} 35. Rc1 $19 {[%emt 0:00:26]} Bb3 {[%emt 0:03:14]} 36. exf5 {[%emt 0:00:41]} gxf5 {[%emt 0:00:12]} 37. d4 {[%emt 0:00:36]} Qb6 38. Qf3 {[%emt 0:02:10]} exd4 {[%emt 0:02:01]} 39. Nf4 {[%emt 0:00:50]} d3 {[%emt 0:01:52]} 40. Rxd3 {[%emt 0:00:42]} Rxd3 {[%emt 0:03:00]} 41. Nxd3 {[%emt 0:30:17]} Qd4 {[%emt 0:30:36]} 42. Bf1 {[%emt 0:00:58]} Bd5 0-1